{"text_format":"1","workbook":"xlsx","n_sheets":13,"sheets":["GK","Def A","Def B","Def C","Mid A","Mid B","Mid C","Fwd A","Fwd B","Fwd C","Def D","Mid D","Fwd D"],"not_rendered":{"charts":0,"images":0,"macros":0,"external_links":0,"defined_names":12,"comments":0,"pivot_tables":0},"unopened":[],"bounds":{"document_bytes":16777216,"sheet_cells":100000,"rows_first":2000,"rows_last":500,"rows_between":2000,"halvings":0,"cell_chars":16384,"cell_head_chars":4096},"cells_cut":0,"cells_raw":0,"read":"whole","date_system":"1900"}

{"sheet":"GK","index":0,"n_rows":45,"n_cols":6,"rows_kept":45,"cut":false,"hidden":false,"merged":[]}
["GK","Player","Pos","Team","Owner","Cost"]
[{"$f":"IF(B2=\"\",\"\",1)","v":1},"Alisson","GK","Liverpool"]
[{"$f":"IF(B3=\"\",\"\",A2+1)","v":2},"Kepa Arrizabalaga","GK","Chelsea"]
[{"$f":"IF(B4=\"\",\"\",A3+1)","v":3},"Dan Bentley","GK","Bristol C"]
[4,"Marcus Bettinelli","GK","Fulham"]
[5,"Bartosz Biakowski","GK","Millwall"]
[6,"Jack Butland","GK","Stoke"]
[7,"Lee Camp","GK","Birmingham"]
[8,"Kiki Casilla","GK","Leeds"]
[9,"David De Gea","GK","Man U"]
[10,"Martin Dubravka","GK","Newcastle"]
[11,"Ederson","GK","Man C"]
[12,"Neil Etheridge","GK","Cardiff"]
[13,"Lukasz Fabianski","GK","West Ham"]
[14,"Ben Foster","GK","Watford"]
[15,"Kamil Grabara","GK","Huddersfield"]
[16,"Angus Gunn","GK","Southampton"]
[17,"Tom Heaton","GK","Villa"]
[18,"Dean Henderson","GK","Sheff U"]
[19,"Sam Johnstone","GK","West Brom"]
[20,"Tim Krul","GK","Norwich"]
[21,"Bernd Leno","GK","Arsenal"]
[22,"Hugo Lloris","GK","Spurs"]
[23,"George Long","GK","Hull"]
[24,"Joe Lumley","GK","QPR"]
[25,"David Marshall","GK","Wigan"]
[26,"Rui Patricio","GK","Wolves"]
[27,"Dilion Phillips","GK","Charlton"]
[28,"Jordan Pickford","GK","Everton"]
[29,"Nick Pope","GK","Burnley"]
[30,"Samuel Radlinger","GK","Barnsley"]
[31,"Rafael Cabral","GK","Reading"]
[32,"Aaron Ramsdale","GK","Bournemouth"]
[33,"Darren Randolph","GK","Middlesbro"]
[34,"David Raya Martin","GK","Brentford"]
[35,"Kelle Roos","GK","Derby"]
[36,"Declan Rudd","GK","Preston"]
[37,"Matthew Ryan","GK","Brighton"]
[38,"Brice Samba","GK","Forest"]
[39,"Kasper Schmeichel","GK","Leicester"]
[40,"Simon Sluga","GK","Luton"]
[41,"Guaita Vincente","GK","Palace"]
[42,"Christian Walton","GK","Blackburn"]
[43,"Keiran Westwood","GK","Sheff W"]
[44,"Freddie Woodman","GK","Swansea"]

{"sheet":"Def A","index":1,"n_rows":52,"n_cols":6,"rows_kept":52,"cut":false,"hidden":false,"merged":[]}
["Def A","Player","Pos","Team","Owner","Cost"]
[{"$f":"IF(B2=\"\",\"\",1)","v":1},"Toby Alderweireld","DEF","Spurs"]
[{"$f":"IF(B3=\"\",\"\",A2+1)","v":2},"Trent Alexander-Arnold","DEF","Liverpool"]
[{"$f":"IF(B4=\"\",\"\",A3+1)","v":3},"Cesar Azpilicueta","DEF","Chelsea"]
[4,"Ryan Bennett","DEF","Wolves"]
[5,"Gaetano Berardi","DEF","Leeds"]
[6,"Reece Burke","DEF","Hull"]
[7,"Joao Cancelo","DEF","Man C"]
[8,"Michael Dawson","DEF","Forest"]
[9,"Christian Fuchs","DEF","Leicester"]
[10,"Kieran Gibbs","DEF","West Brom"]
[11,"Harry Maguire","DEF","Man U"]
[12,"Alfie Mawson","DEF","Fulham"]
[13,"Ben Mee","DEF","Burnley"]
[14,"Yerry Mina","DEF","Everton"]
[15,"Nacho Monreal","DEF","Arsenal"]
[16,"Lee Peltier","DEF","Cardiff"]
[17,"Luke Shaw","DEF","Man U"]
[18,"Mike van der Hoorn","DEF","Swansea"]
[19,"Virgil van Dijk","DEF","Liverpool"]
[20,"Kyle Walker","DEF","Man C"]
[""]
[""]
[""]
[""]
[""]
[""]
[""]
[""]
[""]
[""]
[""]
[""]
[""]
[""]
[""]
[""]
[""]
[""]
[""]
[""]
[""]
[""]
[""]
[""]
[""]
[""]
[""]
[""]
[""]
[""]
[""]

{"sheet":"Def B","index":2,"n_rows":52,"n_cols":6,"rows_kept":52,"cut":false,"hidden":false,"merged":[]}
["Def B","Player","Pos","Team","Owner","Cost"]
[{"$f":"IF(B2=\"\",\"\",1)","v":1},"Kyle Bartley","DEF","West Brom"]
[{"$f":"IF(B3=\"\",\"\",A2+1)","v":2},"Jake Bidwell","DEF","Swansea"]
[{"$f":"IF(B4=\"\",\"\",A3+1)","v":3},"Joe Bryan","DEF","Fulham"]
[4,"Conor Coady","DEF","Wolves"]
[5,"Ben Davies","DEF","Preston"]
[6,"Emerson","DEF","Chelsea"]
[7,"Jonny Evans","DEF","Leicester"]
[8,"Aden Flint","DEF","Cardiff"]
[9,"Joe Gomez","DEF","Liverpool"]
[10,"Tomas Kalas","DEF","Bristol C"]
[11,"Michael Keane","DEF","Everton"]
[12,"David Luiz","DEF","Arsenal"]
[13,"Paddy McNair","DEF","Middlesbro"]
[14,"Nicolas Otamendi","DEF","Man C"]
[15,"Kalvin Phillips","DEF","Leeds"]
[16,"Jack Robinson","DEF","Forest"]
[17,"Davison Sanchez","DEF","Spurs"]
[18,"Christopher Schindler","DEF","Huddersfield"]
[19,"James Tarkowski","DEF","Burnley"]
[20,"Aaron Wan-Bissaka","DEF","Man U"]
[""]
[""]
[""]
[""]
[""]
[""]
[""]
[""]
[""]
[""]
[""]
[""]
[""]
[""]
[""]
[""]
[""]
[""]
[""]
[""]
[""]
[""]
[""]
[""]
[""]
[""]
[""]
[""]
[""]
[""]
[""]

{"sheet":"Def C","index":3,"n_rows":52,"n_cols":6,"rows_kept":52,"cut":false,"hidden":false,"merged":[]}
["Def C","Player","Pos","Team","Owner","Cost"]
[{"$f":"IF(B2=\"\",\"\",1)","v":1},"Semi Ajayi","DEF","West Brom"]
[{"$f":"IF(B3=\"\",\"\",A2+1)","v":2},"Nathan Ake","DEF","Bournemouth"]
[{"$f":"IF(B4=\"\",\"\",A3+1)","v":3},"Patrick Bauer","DEF","Preston"]
[4,"Hector Bellerin","DEF","Arsenal"]
[5,"Willy Boly","DEF","Wolves"]
[6,"Cameron Carter-Vickers","DEF","Stoke"]
[7,"Anders Christensen","DEF","Chelsea"]
[8,"Seamus Coleman","DEF","Everton"]
[9,"Liam Cooper","DEF","Leeds"]
[10,"Harlee Dean","DEF","Birmingham"]
[11,"Issa Diop","DEF","West Ham"]
[12,"Lewis Dunk","DEF","Brighton"]
[13,"Jose Holebas","DEF","Watford"]
[14,"Richard Keogh","DEF","Derby"]
[15,"Terence Kongolo","DEF","Huddersfield"]
[16,"Aymeric Laporte","DEF","Man C"]
[17,"Tom Lees","DEF","Sheff W"]
[18,"Victor Lindelof","DEF","Man U"]
[19,"Matthew Lowton","DEF","Burnley"]
[20,"Sean Morrison","DEF","Cardiff"]
[21,"Ricardo Pereira","DEF","Leicester"]
[22,"Tim Ream","DEF","Fulham"]
[23,"Connor Roberts","DEF","Swansea"]
[24,"Andrew Robertson","DEF","Liverpool"]
[25,"Danny Rose","DEF","Spurs"]
[26,"Ryan Shotton","DEF","Middlesbro"]
[27,"Keiran Tierney","DEF","Arsenal"]
[28,"Jannik Vestergaard","DEF","Southampton"]
[29,"Kyle Walker-Peters","DEF","Spurs"]
[30,"Andre Wisdom","DEF","Derby"]
[""]
[""]
[""]
[""]
[""]
[""]
[""]
[""]
[""]
[""]
[""]
[""]
[""]
[""]
[""]
[""]
[""]
[""]
[""]
[""]
[""]

{"sheet":"Mid A","index":4,"n_rows":52,"n_cols":6,"rows_kept":52,"cut":false,"hidden":false,"merged":[]}
["Mid A","Player","Pos","Team","Owner","Cost"]
[{"$f":"IF(B2=\"\",\"\",1)","v":1},"Albert Adomah","MID","Forest"]
[{"$f":"IF(B3=\"\",\"\",A2+1)","v":2},"Michail Antonio","MID","West Ham"]
[{"$f":"IF(B4=\"\",\"\",A3+1)","v":3},"Dani Ceballos","MID","Arsenal"]
[4,"Bersant Celina","MID","Swansea"]
[5,"Helder Costa","MID","Leeds"]
[6,"Bradley Dack","MID","Blackburn"]
[7,"Abdoulaye Doucoure","MID","Watford"]
[8,"Nathan Dyer","MID","Swansea"]
[9,"Jack Grealish","MID","Villa"]
[10,"Connor Hourihane","MID","Villa"]
[11,"Will Hughes","MID","Watford"]
[12,"Diogo Jota","MID","Wolves"]
[13,"Jota","MID","Villa"]
[14,"Giovani Lo Celso","MID","Spurs"]
[15,"Riyad Mahrez","MID","Man C"]
[16,"John McGinn","MID","Villa"]
[17,"Henrikh Mkhitaryan","MID","Arsenal"]
[18,"Ruben Neves","MID","Wolves"]
[19,"Mesut Ozil","MID","Arsenal"]
[20,"Paul Pogba","MID","Man U"]
[21,"Nathan Redmond","MID","Southampton"]
[22,"Matt Ritchie","MID","Newcastle"]
[23,"Jonjo Shelvey","MID","Newcastle"]
[24,"Gylfi Sigurdsson","MID","Everton"]
[25,"Tiago Silva","MID","Forest"]
[26,"Bernardo Silva","MID","Man C"]
[27,"David Silva","MID","Man C"]
[28,"Heung-Min Son","MID","Spurs"]
[29,"Will Vaulks","MID","Cardiff"]
[30,"Willian","MID","Chelsea"]
[""]
[""]
[""]
[""]
[""]
[""]
[""]
[""]
[""]
[""]
[""]
[""]
[""]
[""]
[""]
[""]
[""]
[""]
[""]
[""]
[""]

{"sheet":"Mid B","index":5,"n_rows":52,"n_cols":6,"rows_kept":52,"cut":false,"hidden":false,"merged":[]}
["Mid B","Player","Pos","Team","Owner","Cost"]
[{"$f":"IF(B2=\"\",\"\",1)","v":1},"Ezgjan Alioski","MID","Leeds"]
[{"$f":"IF(B3=\"\",\"\",A2+1)","v":2},"Joe Allen","MID","Stoke"]
[{"$f":"IF(B4=\"\",\"\",A3+1)","v":3},"Harvey Barnes","MID","Leicester"]
[4,"Alan Browne","MID","Preston"]
[5,"Emiliano Buendia","MID","Norwich"]
[6,"Tom Cairney","MID","Fulham"]
[7,"Leo Dendoncker","MID","Wolves"]
[8,"Matt Doherty","MID","Wolves"]
[9,"Kieran Dowell","MID","Derby"]
[10,"Dan James","MID","Man U"]
[11,"Daniel Johnson","MID","Preston"]
[12,"John Lundstram","MID","Sheff U"]
[13,"James Maddison","MID","Leicester"]
[14,"Luka Milivojevic","MID","Palace"]
[15,"Mason Mount","MID","Chelsea"]
[16,"Lucas Moura","MID","Spurs"]
[17,"Joao Moutinho","MID","Wolves"]
[18,"Oliver Norwood","MID","Sheff U"]
[19,"Chrstian Pulisic","MID","Chelsea"]
[20,"Romaine Sawyers","MID","West Brom"]
[21,"Youri Tielemans","MID","Leicester"]
[22,"Andros Townsend","MID","Palace"]
[23,"Adama Traore","MID","Wolves"]
[24,"Marley Watkins","MID","Bristol C"]
[25,"Harry Wilson","MID","Bournemouth"]
[""]
[""]
[""]
[""]
[""]
[""]
[""]
[""]
[""]
[""]
[""]
[""]
[""]
[""]
[""]
[""]
[""]
[""]
[""]
[""]
[""]
[""]
[""]
[""]
[""]
[""]

{"sheet":"Mid C","index":6,"n_rows":52,"n_cols":6,"rows_kept":52,"cut":false,"hidden":false,"merged":[]}
["Mid C","Player","Pos","Team","Owner","Cost"]
[{"$f":"IF(B2=\"\",\"\",1)","v":1},"Harry Arter","MID","Fulham"]
[{"$f":"IF(B3=\"\",\"\",A2+1)","v":2},"Matthew Cash","MID","Forest"]
[{"$f":"IF(B4=\"\",\"\",A3+1)","v":3},"Stuart Dallas","MID","Leeds"]
[4,"Stewart Downing","MID","Blackburn"]
[5,"Kyle Edwards","MID","West Brom"]
[6,"Ryan Fraser","MID","Bournemouth"]
[7,"Andre Gomes","MID","Everton"]
[8,"Ilkay Gundogan","MID","Man C"]
[9,"Jeff Hendrick","MID","Burnley"]
[10,"Jordon Ibe","MID","Bournemouth"]
[11,"Manuel Lanzini","MID","West Ham"]
[12,"Emiliano Marcondes","MID","Brentford"]
[13,"Nemanja Matic","MID","Man U"]
[14,"James McClean","MID","Stoke"]
[15,"Aaron Mooy","MID","Brighton"]
[16,"Tanguy Ndombele","MID","Spurs"]
[17,"Alex Oxlade-Chamberlain","MID","Liverpool"]
[18,"Pele","MID","Reading"]
[19,"Matt Phillips","MID","West Brom"]
[20,"Declan Rice","MID","West Ham"]
[21,"Robert Snodgrass","MID","West Ham"]
[22,"Marco Steipermann","MID","Norwich"]
[23,"John Swift","MID","Reading"]
[24,"James Ward-Prowse","MID","Southampton"]
[25,"Jonny Williams","MID","Charlton"]
[""]
[""]
[""]
[""]
[""]
[""]
[""]
[""]
[""]
[""]
[""]
[""]
[""]
[""]
[""]
[""]
[""]
[""]
[""]
[""]
[""]
[""]
[""]
[""]
[""]
[""]

{"sheet":"Fwd A","index":7,"n_rows":52,"n_cols":6,"rows_kept":52,"cut":false,"hidden":false,"merged":[]}
["Fwd A","Player","Pos","Team","Owner","Cost"]
[{"$f":"IF(B2=\"\",\"\",1)","v":1},"Tammy Abraham","FWD","Chelsea"]
[{"$f":"IF(B3=\"\",\"\",A2+1)","v":2},"Sergio Aguero","FWD","Man C"]
[{"$f":"IF(B4=\"\",\"\",A3+1)","v":3},"Dele Alli","FWD","Spurs"]
[4,"Britt Assombalonga","FWD","Middlesbro"]
[5,"Pierre-Emerick Aubameyang","FWD","Arsenal"]
[6,"Patrick Bamford","FWD","Leeds"]
[7,"Ashley Barnes","FWD","Burnley"]
[8,"Christian Benteke","FWD","Palace"]
[9,"Jarrod Bowen","FWD","Hull"]
[10,"Kevin De Bruyne","FWD","Man C"]
[11,"Gerard Deulofeu","FWD","Watford"]
[12,"Christian Eriksen","FWD","Spurs"]
[13,"Roberto Firmino","FWD","Liverpool"]
[14,"Stephen Fletcher","FWD","Sheff W"]
[15,"Olivier Giroud","FWD","Chelsea"]
[16,"Lewis Grabban","FWD","Forest"]
[17,"Karlan Grant","FWD","Huddersfield"]
[18,"Kamil Grosicki","FWD","Hull"]
[19,"Sebastian Haller","FWD","West Ham"]
[20,"Pablo Hernandez","FWD","Leeds"]
[21,"Alex Iwobi","FWD","Everton"]
[22,"Gabriel Jesus","FWD","Man C"]
[23,"Joelinton","FWD","Newcastle"]
[24,"Lucas Jutkiewitcz","FWD","Birmingham"]
[25,"Harry Kane","FWD","Spurs"]
[26,"Moise Kean","FWD","Everton"]
[27,"Anthony Knockaert","FWD","Fulham"]
[28,"Alexandre Lacazette","FWD","Arsenal"]
[29,"Tom Lawrence","FWD","Derby"]
[30,"Jonathan Leko","FWD","Charlton"]
[31,"Joe Lolley","FWD","Forest"]
[32,"Sadio Mane","FWD","Liverpool"]
[33,"Anthony Martial","FWD","Man U"]
[34,"Neal Maupay","FWD","Brighton"]
[35,"Aleksandar Mitrovic","FWD","Fulham"]
[36,"Teemu Pukki","FWD","Norwich"]
[37,"Marcus Rashford","FWD","Man U"]
[38,"Richarlison","FWD","Everton"]
[39,"Mohamed Salah","FWD","Liverpool"]
[40,"Jayden Stockley","FWD","Preston"]
[41,"Jamie Vardy","FWD","Leicester"]
[42,"Ollie Watkins","FWD","Brentford"]
[43,"Callum Wilson","FWD","Bournemouth"]
[44,"Chris Wood","FWD","Burnley"]
[45,"Kenneth Zohore","FWD","West Brom"]
[""]
[""]
[""]
[""]
[""]
[""]

{"sheet":"Fwd B","index":8,"n_rows":52,"n_cols":6,"rows_kept":52,"cut":false,"hidden":false,"merged":[]}
["Fwd B","Player","Pos","Team","Owner","Cost"]
[{"$f":"IF(B2=\"\",\"\",1)","v":1},"Che Adams","FWD","Southampton"]
[{"$f":"IF(B3=\"\",\"\",A2+1)","v":2},"Miguel Almiron","FWD","Newcastle"]
[{"$f":"IF(B4=\"\",\"\",A3+1)","v":3},"Adam Armstrong","FWD","Blackburn"]
[4,"Jordan Ayew","FWD","Palace"]
[5,"Andre Ayew","FWD","Swansea"]
[6,"Tom Barkhuizen","FWD","Preston"]
[7,"Borja Baston","FWD","Swansea"]
[8,"Izzy Brown","FWD","Luton"]
[9,"Dominic Calvert-Lewin","FWD","Everton"]
[10,"Troy Deeney","FWD","Watford"]
[11,"Famara Diedhiou","FWD","Bristol C"]
[12,"Robert Glatzel","FWD","Cardiff"]
[13,"Danny Graham","FWD","Blackburn"]
[14,"Andre Gray","FWD","Watford"]
[15,"Lee Gregory","FWD","Stoke"]
[16,"Tomer Hemed","FWD","Charlton"]
[17,"Jackson Irvine","FWD","Hull"]
[18,"Lucas Joao","FWD","Reading"]
[19,"Florian Jozefzoon","FWD","Derby"]
[20,"Joshua King","FWD","Bournemouth"]
[21,"Erik Lamela","FWD","Spurs"]
[22,"Jesse Lingard","FWD","Man U"]
[23,"Sean Maguire","FWD","Preston"]
[24,"Jack Marriott","FWD","Derby"]
[25,"Oli McBurnie","FWD","Sheff U"]
[26,"Dwight McNeil","FWD","Burnley"]
[27,"Keifer Moore","FWD","Wigan"]
[28,"Eddie Nketiah","FWD","Leeds"]
[29,"Pedro","FWD","Chelsea"]
[30,"Nicolas Pepe","FWD","Arsenal"]
[31,"Bobby Reid","FWD","Fulham"]
[32,"Callum Robinson","FWD","Sheff U"]
[33,"Jay Rodriguez","FWD","West Brom"]
[34,"Matt Smith","FWD","Millwall"]
[35,"Raheem Sterling","FWD","Man C"]
[36,"Trezequet","FWD","Villa"]
[37,"Isaac Vassell","FWD","Cardiff"]
[38,"Sam Vokes","FWD","Stoke"]
[39,"Matej Vydra","FWD","Burnley"]
[40,"Martyn Waghorn","FWD","Derby"]
[41,"Danny Welbeck","FWD","Watford"]
[42,"Nahki Wells","FWD","QPR"]
[43,"Wesley","FWD","Villa"]
[44,"Cauley Woodrow","FWD","Barnsley"]
[45,"Wilfrid Zaha","FWD","Palace"]
[""]
[""]
[""]
[""]
[""]
[""]

{"sheet":"Fwd C","index":9,"n_rows":63,"n_cols":6,"rows_kept":63,"cut":false,"hidden":false,"merged":[]}
["Fwd C","Player","Pos","Team","Owner","Cost"]
[{"$f":"IF(B2=\"\",\"\",1)","v":1},"Benik Afobe","FWD","Bristol C"]
[{"$f":"IF(B3=\"\",\"\",A2+1)","v":2},"Felipe Anderson","FWD","West Ham"]
[{"$f":"IF(B4=\"\",\"\",A3+1)","v":3},"Charlie Austin","FWD","West Brom"]
[4,"Michy Batshuayi","FWD","Chelsea"]
[5,"Jon Dadi Bodvarsson","FWD","Millwall"]
[6,"Ben Brereton","FWD","Blackburn"]
[7,"Fraizer Campbell","FWD","Huddersfield"]
[8,"Sergi Canos","FWD","Brentford"]
[9,"Ivan Cavaleiro","FWD","Fulham"]
[10,"Patrick Cutrone","FWD","Wolves"]
[11,"Nouha Dicko","FWD","Hull"]
[12,"Tom Eaves","FWD","Hull"]
[13,"Anwar El Ghazi","FWD","Villa"]
[14,"Eberechi Eze","FWD","QPR"]
[15,"Ashley Fletcher","FWD","Middlesbro"]
[16,"Fernando Forestieri","FWD","Sheff W"]
[17,"Sam Gallagher","FWD","Blackburn"]
[18,"Joe Garner","FWD","Wigan"]
[19,"Demarai Gray","FWD","Leicester"]
[20,"Junior Hoilett","FWD","Cardiff"]
[21,"Jordan Hugill","FWD","QPR"]
[22,"Kelechi Iheanacho","FWD","Leicester"]
[23,"Danny Ings","FWD","Southampton"]
[24,"Michael Jacobs","FWD","Wigan"]
[25,"Raul Jiminez","FWD","Wolves"]
[26,"Elias Kachunga","FWD","Huddersfield"]
[27,"Mat Klich","FWD","Leeds"]
[28,"Jamal Lowe","FWD","Wigan"]
[29,"Gavin Massey","FWD","Wigan"]
[30,"Dave McGoldrick","FWD","Sheff U"]
[31,"Callum McManaman","FWD","Luton"]
[32,"Glenn Murray","FWD","Brighton"]
[33,"David Nugent","FWD","Preston"]
[34,"Jordan Rhodes","FWD","Norwich"]
[35,"Allan Saint-Maximin","FWD","Newcastle"]
[36,"Leroy Sane","FWD","Man C"]
[37,"Billy Sharp","FWD","Sheff U"]
[38,"Dominic Solanke","FWD","Bournemouth"]
[39,"Mamadou Thiam","FWD","Barnsley"]
[40,"Andreas Weimann","FWD","Bristol C"]
[""]
[""]
[""]
[""]
[""]
[""]
[""]
[""]
[""]
[""]
[""]
[""]
[""]
[""]
[""]
[""]
[""]
[""]
[""]
[""]
[""]
[""]

{"sheet":"Def D","index":10,"n_rows":151,"n_cols":6,"rows_kept":151,"cut":false,"hidden":false,"merged":[]}
["DEF D","Player","Pos","Team","Owner","Cost"]
[null,"Sokratis","DEF","Arsenal"]
[null,"Bambo Diaby","DEF","Barnsley"]
[null,"Ben Williams","DEF","Barnsley"]
[null,"Danil Pinillos","DEF","Barnsley"]
[null,"Mads Andersen","DEF","Barnsley"]
[null,"Toby Sibbick","DEF","Barnsley"]
[null,"Jonathon Grounds","DEF","Birmingham"]
[null,"Kristian Pedersen","DEF","Birmingham"]
[null,"Marc Roberts","DEF","Birmingham"]
[null,"Maxime Colin","DEF","Birmingham"]
[null,"Amari Bell","DEF","Blackburn"]
[null,"Darragh Lenihan","DEF","Blackburn"]
[null,"Derrick Williams","DEF","Blackburn"]
[null,"Greg Cunningham","DEF","Blackburn"]
[null,"Lewis Travis","DEF","Blackburn"]
[null,"Charlie Daniels","DEF","Bournemouth"]
[null,"Nathaniel Clyne","DEF","Bournemouth"]
[null,"Simon Francis","DEF","Bournemouth"]
[null,"Steve Cook","DEF","Bournemouth"]
[null,"Henrik Dalsgaard","DEF","Brentford"]
[null,"John Egan","DEF","Brentford"]
[null,"Julian Jeanvier","DEF","Brentford"]
[null,"Pontus Jansson","DEF","Brentford"]
[null,"Yoann Barbet","DEF","Brentford"]
[null,"Liam Rosenior","DEF","Brighton"]
[null,"Martin Montoya","DEF","Brighton"]
[null,"Romaric Yapi","DEF","Brighton"]
[null,"Shane Duffy","DEF","Brighton"]
[null,"Bailey Wright","DEF","Bristol C"]
[null,"Jack Hunt","DEF","Bristol C"]
[null,"Jay Dasilva","DEF","Bristol C"]
[null,"Nathan Baker","DEF","Bristol C"]
[null,"Ashley Westwood","DEF","Burnley"]
[null,"Erik Pieters","DEF","Burnley"]
[null,"Ashley Richards","DEF","Cardiff"]
[null,"Joe Bennett","DEF","Cardiff"]
[null,"Adedeji Oshilaja","DEF","Charlton"]
[null,"Ben Purrington","DEF","Charlton"]
[null,"Jason Pearce","DEF","Charlton"]
[null,"Mahamadou Sarr","DEF","Charlton"]
[null,"Tom Lockyer","DEF","Charlton"]
[null,"Antonio Rudiger","DEF","Chelsea"]
[null,"Kurt Zouma","DEF","Chelsea"]
[null,"Krystian Bielik","DEF","Derby"]
[null,"Max Lowe","DEF","Derby"]
[null,"Scott Malone","DEF","Derby"]
[null,"Djibril Sidibe","DEF","Everton"]
[null,"Lucas Digne","DEF","Everton"]
[null,"Carl Jenkinson","DEF","Forest"]
[null,"Joe Worrall","DEF","Forest"]
[null,"Yuri Ribeiro","DEF","Forest"]
[null,"Cyrus Christie","DEF","Fulham"]
[null,"Steve Sessegnon","DEF","Fulham"]
[null,"Florent Hadergjonaj","DEF","Huddersfield"]
[null,"Jaden Brown","DEF","Huddersfield"]
[null,"Tommy Elphick","DEF","Huddersfield"]
[null,"Brandon Fleming","DEF","Hull"]
[null,"Callum Elder","DEF","Hull"]
[null,"Jordy de Wijs","DEF","Hull"]
[null,"Matthew Pennington","DEF","Hull"]
[null,"Ben White","DEF","Leeds"]
[null,"Luke Ayling","DEF","Leeds"]
[null,"Caglar Soyuncu","DEF","Leicester"]
[null,"Wes Morgan","DEF","Leicester"]
[null,"Joel Matip","DEF","Liverpool"]
[null,"Brendan Galloway","DEF","Luton"]
[null,"James Bree","DEF","Luton"]
[null,"Martin Cranie","DEF","Luton"]
[null,"Matthew Pearson","DEF","Luton"]
[null,"Sonny Bradley","DEF","Luton"]
[null,"Oleksander Zinchenko","DEF","Man C"]
[null,"Chris Smalling","DEF","Man U"]
[null,"Dael Fry","DEF","Middlesbro"]
[null,"Daniel Ayala","DEF","Middlesbro"]
[null,"Marcus Tavernier","DEF","Middlesbro"]
[null,"Alex Pearce","DEF","Millwall"]
[null,"Conor McLaughlin","DEF","Millwall"]
[null,"Jake Cooper","DEF","Millwall"]
[null,"Murray Wallace","DEF","Millwall"]
[null,"Shaun Hutchinson","DEF","Millwall"]
[null,"Ciaran Clark","DEF","Newcastle"]
[null,"Fabian Schar","DEF","Newcastle"]
[null,"Federico Fernandez","DEF","Newcastle"]
[null,"Jamaal Lascelles","DEF","Newcastle"]
[null,"Paul Dummett","DEF","Newcastle"]
[null,"Ben Godfrey","DEF","Norwich"]
[null,"Grant Hanley","DEF","Norwich"]
[null,"Jamal Lewis","DEF","Norwich"]
[null,"Max Aarons","DEF","Norwich"]
[null,"Timm Klose","DEF","Norwich"]
[null,"Gary Cahill","DEF","Palace"]
[null,"Joel Ward","DEF","Palace"]
[null,"Martin Kelly","DEF","Palace"]
[null,"Patrick Van Aanholt","DEF","Palace"]
[null,"Scott Dann","DEF","Palace"]
[null,"Darnell Fisher","DEF","Preston"]
[null,"Joe Rafferty","DEF","Preston"]
[null,"Jordan Storey","DEF","Preston"]
[null,"Angel Rangel","DEF","QPR"]
[null,"Grant Hall","DEF","QPR"]
[null,"Lee Wallace","DEF","QPR"]
[null,"Todd Kane","DEF","QPR"]
[null,"Yoann Barbet","DEF","QPR"]
[null,"Andy Yiadom","DEF","Reading"]
[null,"Liam Moore","DEF","Reading"]
[null,"Michael Morrison","DEF","Reading"]
[null,"Omar Richards","DEF","Reading"]
[null,"Tyler Blackett","DEF","Reading"]
[null,"Enda Stevens","DEF","Sheff U"]
[null,"George Baldock","DEF","Sheff U"]
[null,"Jack O'Connell","DEF","Sheff U"]
[null,"Kieron Freeman","DEF","Sheff U"]
[null,"Phil Jagielka","DEF","Sheff U"]
[null,"Adam Reach","DEF","Sheff W"]
[null,"Dominic Iorfa","DEF","Sheff W"]
[null,"Julian Borner","DEF","Sheff W"]
[null,"Morgan Fox","DEF","Sheff W"]
[null,"Cedric Soares","DEF","Southampton"]
[null,"Jack Stephens","DEF","Southampton"]
[null,"Jan Bednarak","DEF","Southampton"]
[null,"Jan Valery","DEF","Southampton"]
[null,"Jan Vertonghen","DEF","Spurs"]
[null,"Cuco Martina","DEF","Stoke"]
[null,"Danny Batth","DEF","Stoke"]
[null,"Liam Lindsay","DEF","Stoke"]
[null,"Ryan Shawcross","DEF","Stoke"]
[null,"Franck Tabanou","DEF","Swansea"]
[null,"Kyle Naughton","DEF","Swansea"]
[null,"Ahmed Elmohamady","DEF","Villa"]
[null,"Alan Hutton","DEF","Villa"]
[null,"Kortney Hause","DEF","Villa"]
[null,"Neil Taylor","DEF","Villa"]
[null,"Tyrone Mings","DEF","Villa"]
[null,"Christian Kabasele","DEF","Watford"]
[null,"Craig Cathcart","DEF","Watford"]
[null,"Craig Dawson","DEF","Watford"]
[null,"Kiko","DEF","Watford"]
[null,"Darnell Furlong","DEF","West Brom"]
[null,"Nathan Ferguson","DEF","West Brom"]
[null,"Angelo Ogbonna","DEF","West Ham"]
[null,"Arthur Masuaku","DEF","West Ham"]
[null,"Pablo Zabaleta","DEF","West Ham"]
[null,"Ryan Fredericks","DEF","West Ham"]
[null,"Antonee Robinson","DEF","Wigan"]
[null,"Cedric Kipre","DEF","Wigan"]
[null,"Chey Dunkley","DEF","Wigan"]
[null,"Daniel Fox","DEF","Wigan"]
[null,"Nathan Byrne","DEF","Wigan"]
[null,"Jesus Vallejo","DEF","Wolves"]
[null,"Jonny Castro Otto","DEF","Wolves"]

{"sheet":"Mid D","index":11,"n_rows":316,"n_cols":6,"rows_kept":316,"cut":false,"hidden":false,"merged":[]}
["MID D","Player","Pos","Team","Owner","Cost"]
[null,"Ainsley Maitland-Niles","MID","Arsenal"]
[null,"Emile Smith-Rowe","MID","Arsenal"]
[null,"Emile Smith-Rowe","MID","Arsenal"]
[null,"Granit Xhaka","MID","Arsenal"]
[null,"Joe Willock","MID","Arsenal"]
[null,"Lucas Torreira","MID","Arsenal"]
[null,"Matteo Guendouzi","MID","Arsenal"]
[null,"Mohamed Elneny","MID","Arsenal"]
[null,"Cameron McGeehan","MID","Barnsley"]
[null,"Craig Gardner","MID","Birmingham"]
[null,"David Davis","MID","Birmingham"]
[null,"Fran Villalba","MID","Birmingham"]
[null,"Gary Gardner","MID","Birmingham"]
[null,"Kerim Mrabti","MID","Birmingham"]
[null,"Viv Solomon-Otabor","MID","Birmingham"]
[null,"Brad Lyons","MID","Blackburn"]
[null,"Corry Evans","MID","Blackburn"]
[null,"Craig Conway","MID","Blackburn"]
[null,"Danny Guthrie","MID","Blackburn"]
[null,"Jack Rodwell","MID","Blackburn"]
[null,"Joe Rothwell","MID","Blackburn"]
[null,"Peter Whittingham","MID","Blackburn"]
[null,"Richard Smallwood","MID","Blackburn"]
[null,"Sacha Petshi","MID","Blackburn"]
[null,"Dan Gosling","MID","Bournemouth"]
[null,"David Brooks","MID","Bournemouth"]
[null,"Emerson Hyndman","MID","Bournemouth"]
[null,"Jefferson Lerma","MID","Bournemouth"]
[null,"Junior Stanislas","MID","Bournemouth"]
[null,"Lewis Cook","MID","Bournemouth"]
[null,"Philip Billing","MID","Bournemouth"]
[null,"Dru Yearwood","MID","Brentford"]
[null,"Josh Clarke","MID","Brentford"]
[null,"Josh Da Silva","MID","Brentford"]
[null,"Josh McEachran","MID","Brentford"]
[null,"Kamohelo Mokotjo","MID","Brentford"]
[null,"Kamohelo Mokotjo","MID","Brentford"]
[null,"Mathias Jensen","MID","Brentford"]
[null,"Nico Yennaris","MID","Brentford"]
[null,"Baram Kayal","MID","Brighton"]
[null,"Dale Stephens","MID","Brighton"]
[null,"Davy Propper","MID","Brighton"]
[null,"Leandro Trossard","MID","Brighton"]
[null,"Pascal Gross","MID","Brighton"]
[null,"Solly March","MID","Brighton"]
[null,"Steve Sidwell","MID","Brighton"]
[null,"Yves Bissouma","MID","Brighton"]
[null,"Adam Nagy","MID","Bristol C"]
[null,"Callum O'Dowda","MID","Bristol C"]
[null,"Han-Noah Massengo","MID","Bristol C"]
[null,"Josh Brownhill","MID","Bristol C"]
[null,"Kasey Palmer","MID","Bristol C"]
[null,"Korey Smith","MID","Bristol C"]
[null,"Niclas Eliasson","MID","Bristol C"]
[null,"Sammie Szmodics","MID","Bristol C"]
[null,"Tommy Rowe","MID","Bristol C"]
[null,"Aaron Lennon","MID","Burnley"]
[null,"Danny Drinkwater","MID","Burnley"]
[null,"Dean Marney","MID","Burnley"]
[null,"Jack Cork","MID","Burnley"]
[null,"Johann Berg Gudmundsson","MID","Burnley"]
[null,"Robbie Brady","MID","Burnley"]
[null,"Steven Defour","MID","Burnley"]
[null,"Jamie Ward","MID","Cardiff"]
[null,"Joe Ralls","MID","Cardiff"]
[null,"Leandro Bacuna","MID","Cardiff"]
[null,"Marlon Pack","MID","Cardiff"]
[null,"Stuart O'Keefe","MID","Cardiff"]
[null,"Ahmed Kashi","MID","Charlton"]
[null,"Alou Diarra","MID","Charlton"]
[null,"Bradley Pritchard","MID","Charlton"]
[null,"Darren Pratley","MID","Charlton"]
[null,"Diego Poyet","MID","Charlton"]
[null,"El Hadji Ba","MID","Charlton"]
[null,"Jake Forster-Caskey","MID","Charlton"]
[null,"Callum Hudson-Odoi","MID","Chelsea"]
[null,"Charly Musanda","MID","Chelsea"]
[null,"Jorginho","MID","Chelsea"]
[null,"Marcus Alonso","MID","Chelsea"]
[null,"Mateo Kovacic","MID","Chelsea"]
[null,"N'Gole Kante","MID","Chelsea"]
[null,"Ross Barkley","MID","Chelsea"]
[null,"Ruben Loftus-Cheek","MID","Chelsea"]
[null,"Bradley Johnson","MID","Derby"]
[null,"Duane Holmes","MID","Derby"]
[null,"George Evans","MID","Derby"]
[null,"Ikechi Anya","MID","Derby"]
[null,"Jamie Paterson","MID","Derby"]
[null,"Joe Ledley","MID","Derby"]
[null,"Maikel Kieftenbeld","MID","Derby"]
[null,"Marcus Olsson","MID","Derby"]
[null,"Tom Huddlestone","MID","Derby"]
[null,"Tom Koblenz","MID","Derby"]
[null,"Bernard","MID","Everton"]
[null,"Fabien Delph","MID","Everton"]
[null,"Jean-Philippe Gbamin","MID","Everton"]
[null,"Morgan Schneiderlin","MID","Everton"]
[null,"Tom Davies","MID","Everton"]
[null,"Adlene Guedioura","MID","Forest"]
[null,"Alfa Semedo","MID","Forest"]
[null,"Andreas Bouchalakis","MID","Forest"]
[null,"Ashkan Dejagah","MID","Forest"]
[null,"Ben Watson","MID","Forest"]
[null,"Claudio Yacob","MID","Forest"]
[null,"Jack Colback","MID","Forest"]
[null,"Joao Carvalho","MID","Forest"]
[null,"Liam Bridcutt","MID","Forest"]
[null,"Panagiotis Tachtsidis","MID","Forest"]
[null,"Ryan Yates","MID","Forest"]
[null,"Sammy Ameobi","MID","Forest"]
[null,"Harrison Reed","MID","Fulham"]
[null,"Ibrahima Cisse","MID","Fulham"]
[null,"Josh Onomah","MID","Fulham"]
[null,"Kevin McDonald","MID","Fulham"]
[null,"Lucca De La Torre","MID","Fulham"]
[null,"Neeskens Kebano","MID","Fulham"]
[null,"Alex Pritchard","MID","Huddersfield"]
[null,"Danny Williams","MID","Huddersfield"]
[null,"Dean Whitehead","MID","Huddersfield"]
[null,"Jason Puncheon","MID","Huddersfield"]
[null,"Jonathan Hogg","MID","Huddersfield"]
[null,"Juninho Bacuna","MID","Huddersfield"]
[null,"Karlan Ahearne-Grant","MID","Huddersfield"]
[null,"Trevor Chalobah","MID","Huddersfield"]
[null,"Evandro","MID","Hull"]
[null,"George Honeyman","MID","Hull"]
[null,"Jon-Miguel Toral","MID","Hull"]
[null,"Josh Bowler","MID","Hull"]
[null,"Kevin Stewart","MID","Hull"]
[null,"Leo Da Silva Lopes","MID","Hull"]
[null,"Marcus Henriksen","MID","Hull"]
[null,"Ryan Mason","MID","Hull"]
[null,"Adam Forshaw","MID","Leeds"]
[null,"Eunan O'Kane","MID","Leeds"]
[null,"Jack Harrison","MID","Leeds"]
[null,"Vurnon Anita","MID","Leeds"]
[null,"Adrien Silva","MID","Leicester"]
[null,"Daniel Amartey","MID","Leicester"]
[null,"Dennis Praet","MID","Leicester"]
[null,"Marc Albrighton","MID","Leicester"]
[null,"Matthew James","MID","Leicester"]
[null,"Nampalys Mendy","MID","Leicester"]
[null,"Onyinye Ndidi","MID","Leicester"]
[null,"Rachid Ghezzal","MID","Leicester"]
[null,"Adam Lallana","MID","Liverpool"]
[null,"Fabinho","MID","Liverpool"]
[null,"Georginio Wijnaldum","MID","Liverpool"]
[null,"James Milner","MID","Liverpool"]
[null,"Jordan Henderson","MID","Liverpool"]
[null,"Naby Keita","MID","Liverpool"]
[null,"Ryan Kent","MID","Liverpool"]
[null,"Xherdan Shaqiri","MID","Liverpool"]
[null,"Alan McCormack","MID","Luton"]
[null,"Andrew Shinnie","MID","Luton"]
[null,"Jacob Butterfield","MID","Luton"]
[null,"Jorge Grant","MID","Luton"]
[null,"Kazenga Lua-Lua","MID","Luton"]
[null,"Luke Bolton","MID","Luton"]
[null,"Luke Guttridge","MID","Luton"]
[null,"Nathan Doyle","MID","Luton"]
[null,"Pat McCourt","MID","Luton"]
[null,"Ryan Hall","MID","Luton"]
[null,"Ryan Tunnicliffe","MID","Luton"]
[null,"Benjamin Mendy","MID","Man C"]
[null,"Daniel Arzani","MID","Man C"]
[null,"Phil Foden","MID","Man C"]
[null,"Rodri","MID","Man C"]
[null,"Andreas Pereira","MID","Man U"]
[null,"Fred","MID","Man U"]
[null,"Juan Mata","MID","Man U"]
[null,"Scott McTominay","MID","Man U"]
[null,"Adam Clayton","MID","Middlesbro"]
[null,"Carlos de Pena","MID","Middlesbro"]
[null,"George Saville","MID","Middlesbro"]
[null,"Grant Leadbitter","MID","Middlesbro"]
[null,"Jonathon Howson","MID","Middlesbro"]
[null,"Lewis Wing","MID","Middlesbro"]
[null,"Rajiv van La Parra","MID","Middlesbro"]
[null,"Ben Thompson","MID","Millwall"]
[null,"Jed Wallace","MID","Millwall"]
[null,"Jiri Skalak","MID","Millwall"]
[null,"Mahlon Romeo","MID","Millwall"]
[null,"Nadjim Abdou","MID","Millwall"]
[null,"Ryan Leonard","MID","Millwall"]
[null,"Shane Ferguson","MID","Millwall"]
[null,"Shaun Williams","MID","Millwall"]
[null,"Callum Roberts","MID","Newcastle"]
[null,"Isaac Hayden","MID","Newcastle"]
[null,"Mohamed Diame","MID","Newcastle"]
[null,"Sean Longstaff","MID","Newcastle"]
[null,"Sung-Yueng Ki","MID","Newcastle"]
[null,"Aidan Fitzpatrick","MID","Norwich"]
[null,"Alexander Tettey","MID","Norwich"]
[null,"Daniel Adshead","MID","Norwich"]
[null,"Ibrahim Amadou","MID","Norwich"]
[null,"Kenny McLean","MID","Norwich"]
[null,"Mario Vrancic","MID","Norwich"]
[null,"Moritz Leitner","MID","Norwich"]
[null,"Onel Hernandez","MID","Norwich"]
[null,"Todd Cantwell","MID","Norwich"]
[null,"Tom Trybull","MID","Norwich"]
[null,"Chiekhou Kouyate","MID","Palace"]
[null,"James McArthur","MID","Palace"]
[null,"James McCarthy","MID","Palace"]
[null,"Jeffrey Schlupp","MID","Palace"]
[null,"Jordan Mutch","MID","Palace"]
[null,"Max Meyer","MID","Palace"]
[null,"Victor Camarasa","MID","Palace"]
[null,"Ben Pearson","MID","Preston"]
[null,"Brad Potts","MID","Preston"]
[null,"Brandon Barker","MID","Preston"]
[null,"Josh Harrop","MID","Preston"]
[null,"Bright Osavi-Samuel","MID","QPR"]
[null,"Josh Scowen","MID","QPR"]
[null,"Marc Pugh","MID","QPR"]
[null,"Matt Smith","MID","QPR"]
[null,"Paul Smyth","MID","QPR"]
[null,"Pawal Wszolek","MID","QPR"]
[null,"Andy Rinomhota","MID","Reading"]
[null,"Callum Harriott","MID","Reading"]
[null,"Charlie Adam","MID","Reading"]
[null,"Gareth McCleary","MID","Reading"]
[null,"Joey van den Berg","MID","Reading"]
[null,"Lewis Baker","MID","Reading"]
[null,"Ovie Ejaria","MID","Reading"]
[null,"Ben Osborn","MID","Sheff U"]
[null,"Ben Woodburn","MID","Sheff U"]
[null,"Chris Basham","MID","Sheff U"]
[null,"John Fleck","MID","Sheff U"]
[null,"Luke Freeman","MID","Sheff U"]
[null,"Muhamed Besic","MID","Sheff U"]
[null,"Nathan Thomas","MID","Sheff U"]
[null,"Samir Carruthers","MID","Sheff U"]
[null,"Almen Abdi","MID","Sheff W"]
[null,"Barry Bannan","MID","Sheff W"]
[null,"David Jones","MID","Sheff W"]
[null,"Jacob Murphy","MID","Sheff W"]
[null,"Joel Pelupessy","MID","Sheff W"]
[null,"Kadeem Harris","MID","Sheff W"]
[null,"Kieran Lee","MID","Sheff W"]
[null,"Massimo Luongo","MID","Sheff W"]
[null,"Ronaldo Aarons","MID","Sheff W"]
[null,"Sean Clare","MID","Sheff W"]
[null,"Mario Lemina","MID","Southampton"]
[null,"Maya Yoshida","MID","Southampton"]
[null,"Mohammed Elyounoussi","MID","Southampton"]
[null,"Oriol Romeu","MID","Southampton"]
[null,"Pierre Hojbjerg","MID","Southampton"]
[null,"Steven Davis","MID","Southampton"]
[null,"Stuart Armstrong","MID","Southampton"]
[null,"Eric Dier","MID","Spurs"]
[null,"Harry Winks","MID","Spurs"]
[null,"Moussa Dembele","MID","Spurs"]
[null,"Moussa Sissoko","MID","Spurs"]
[null,"Victor Wanyama","MID","Spurs"]
[null,"Badou Niaye","MID","Stoke"]
[null,"Darren Fletcher","MID","Stoke"]
[null,"Ibrahim Afellay","MID","Stoke"]
[null,"Jordan Cousins","MID","Stoke"]
[null,"Mark Duffy","MID","Stoke"]
[null,"Moha","MID","Stoke"]
[null,"Oghenekaro Etobo","MID","Stoke"]
[null,"Ryan Woods","MID","Stoke"]
[null,"Sam Clucas","MID","Stoke"]
[null,"Aldo Kalulu","MID","Swansea"]
[null,"Barrie McKay","MID","Swansea"]
[null,"George Byers","MID","Swansea"]
[null,"Jay Fulton","MID","Swansea"]
[null,"Leon Britton","MID","Swansea"]
[null,"Matt Grimes","MID","Swansea"]
[null,"Roque Mesa","MID","Swansea"]
[null,"Wayne Routledge","MID","Swansea"]
[null,"Douglas Luiz","MID","Villa"]
[null,"Henri Lansbury","MID","Villa"]
[null,"Marvelous Nakamba","MID","Villa"]
[null,"Mile Jedinak","MID","Villa"]
[null,"Tommy Carroll","MID","Villa"]
[null,"Yannick Bolasie","MID","Villa"]
[null,"Didier Ndong","MID","Watford"]
[null,"Dodi Lukebakio","MID","Watford"]
[null,"Etienne Capoue","MID","Watford"]
[null,"Ken Sema","MID","Watford"]
[null,"Nathaniel Chalobah","MID","Watford"]
[null,"Quina","MID","Watford"]
[null,"Roberto Pereyra","MID","Watford"]
[null,"Tom Cleverley","MID","Watford"]
[null,"Chris Brunt","MID","West Brom"]
[null,"Gareth Barry","MID","West Brom"]
[null,"Grady Diangana","MID","West Brom"]
[null,"Grady Diangana","MID","West Brom"]
[null,"Grzegorz Krychwowiak","MID","West Brom"]
[null,"Hal Robson-Kanu","MID","West Brom"]
[null,"Jake Livermore","MID","West Brom"]
[null,"James Morrison","MID","West Brom"]
[null,"Matheus Pereira","MID","West Brom"]
[null,"Rakeem Harper","MID","West Brom"]
[null,"Sam Field","MID","West Brom"]
[null,"Stefan Johansen","MID","West Brom"]
[null,"Wes Hoolahan","MID","West Brom"]
[null,"Carlos Sanchez","MID","West Ham"]
[null,"Jack Wilshire","MID","West Ham"]
[null,"Joao Mario","MID","West Ham"]
[null,"Mark Noble","MID","West Ham"]
[null,"Pablo Fornals","MID","West Ham"]
[null,"Dujon Sterling","MID","Wigan"]
[null,"Joe Williams","MID","Wigan"]
[null,"Kal Naismith","MID","Wigan"]
[null,"Lee Evans","MID","Wigan"]
[null,"Lewis MacLeod","MID","Wigan"]
[null,"Sam Morsy","MID","Wigan"]
[null,"Alfred N'Diaye","MID","Wolves"]
[null,"Jack Price","MID","Wolves"]
[null,"Michal Zyro","MID","Wolves"]
[null,"Romain Saiss","MID","Wolves"]
[null,"Ruben Vinagre","MID","Wolves"]

{"sheet":"Fwd D","index":12,"n_rows":250,"n_cols":6,"rows_kept":250,"cut":false,"hidden":false,"merged":[]}
["FWD D","Player","Pos","Team","Owner","Cost"]
[null,"Patrick Schmidt","FWD","Barnsley"]
[null,"Nicolai Brock-Madsen","FWD","Birmingham"]
[null,"Bengali Fode Koita","FWD","Blackburn"]
[null,"Dominic Samuel","FWD","Blackburn"]
[null,"Marcus Antonsson","FWD","Blackburn"]
[null,"Andrew Surman","FWD","Bournemouth"]
[null,"Arnaut Groeneveld","FWD","Bournemouth"]
[null,"Bryan Mbeumo","FWD","Brentford"]
[null,"Marcus Forss","FWD","Brentford"]
[null,"Said Benraham","FWD","Brentford"]
[null,"Alirera Jahanbakhsh","FWD","Brighton"]
[null,"Florin Andone","FWD","Brighton"]
[null,"Jose Izquierdo","FWD","Brighton"]
[null,"Jurgen Locadia","FWD","Brighton"]
[null,"Lois Diony","FWD","Bristol C"]
[null,"Danny Ward","FWD","Cardiff"]
[null,"Josh Murphy","FWD","Cardiff"]
[null,"Nathaniel Mendez-Laing","FWD","Cardiff"]
[null,"Oumar Niasse","FWD","Cardiff"]
[null,"Rhys Healey","FWD","Cardiff"]
[null,"Frederic Bulot","FWD","Charlton"]
[null,"George Tucudean","FWD","Charlton"]
[null,"Igor Vetokele","FWD","Charlton"]
[null,"Joe Dodoo","FWD","Charlton"]
[null,"Yaya Sanogo","FWD","Charlton"]
[null,"Mason Bennett","FWD","Derby"]
[null,"Wayne Rooney","FWD","Derby"]
[null,"Cenk Tosun","FWD","Everton"]
[null,"Theo Walcott","FWD","Everton"]
[null,"Arvin Appiah","FWD","Forest"]
[null,"Diogo Goncalves","FWD","Forest"]
[null,"Jason Cummings","FWD","Forest"]
[null,"Rafa Mir","FWD","Forest"]
[null,"Floyd Ayite","FWD","Fulham"]
[null,"Havard Nordveit","FWD","Fulham"]
[null,"Luciano Vietto","FWD","Fulham"]
[null,"Josh Koroma","FWD","Huddersfield"]
[null,"Laurent Depoitre","FWD","Huddersfield"]
[null,"Abel Hernandez","FWD","Hull"]
[null,"Chris Martin","FWD","Hull"]
[null,"Josh Magennis","FWD","Hull"]
[null,"Jack Clarke","FWD","Leeds"]
[null,"Tyler Roberts","FWD","Leeds"]
[null,"Ayoze Perez","FWD","Leicester"]
[null,"Fousseni Diabate","FWD","Leicester"]
[null,"Elliiot Lee","FWD","Luton"]
[null,"Rudy Gestede","FWD","Middlesbro"]
[null,"Aiden O'Brien","FWD","Millwall"]
[null,"Tom Bradshaw","FWD","Millwall"]
[null,"Tom Elliott","FWD","Millwall"]
[null,"Andy Carroll","FWD","Newcastle"]
[null,"Christian Atsu","FWD","Newcastle"]
[null,"Kenedy","FWD","Newcastle"]
[null,"Yoshinori Muto","FWD","Newcastle"]
[null,"Dennis Srbeny","FWD","Norwich"]
[null,"Josip Drmic","FWD","Norwich"]
[null,"Connor Wickham","FWD","Palace"]
[null,"Sullay Kaikai","FWD","Palace"]
[null,"Andre Green","FWD","Preston"]
[null,"Billy Bodin","FWD","Preston"]
[null,"Louis Moult","FWD","Preston"]
[null,"Lukas Nmecha","FWD","Preston"]
[null,"Paul Gallagher","FWD","Preston"]
[null,"Aramide Oteh","FWD","QPR"]
[null,"Jan Mlakar","FWD","QPR"]
[null,"Yeni Atito Ngbakoto","FWD","QPR"]
[null,"Danny Loader","FWD","Reading"]
[null,"George Puscas","FWD","Reading"]
[null,"Sam Smith","FWD","Reading"]
[null,"Sone Aluko","FWD","Reading"]
[null,"Yakou Meite","FWD","Reading"]
[null,"Gary Madine","FWD","Sheff U"]
[null,"Lys Mousset","FWD","Sheff U"]
[null,"Atdhe Nuhiu","FWD","Sheff W"]
[null,"Marco Matias","FWD","Sheff W"]
[null,"Moses Odubajo","FWD","Sheff W"]
[null,"Sam Winnall","FWD","Sheff W"]
[null,"Michael Obafemi","FWD","Southampton"]
[null,"Moussa Djenepo","FWD","Southampton"]
[null,"Shane Long","FWD","Southampton"]
[null,"Nick Powell","FWD","Stoke"]
[null,"Scott Hogan","FWD","Stoke"]
[null,"Tom Ince","FWD","Stoke"]
[null,"Tyrese Campbell","FWD","Stoke"]
[null,"Jonathan Kodija","FWD","Villa"]
[null,"Keinan Davis","FWD","Villa"]
[null,"Andre Carrillo","FWD","Watford"]
[null,"Isaac Success","FWD","Watford"]
[null,"Ismaila Sarr","FWD","Watford"]
[null,"Mauro Zarate","FWD","Watford"]
[null,"Stefano Okaka","FWD","Watford"]
[null,"Chris Willock","FWD","West Brom"]
[null,"Jefferson Montero","FWD","West Brom"]
[null,"Nacer Chadli","FWD","West Brom"]
[null,"Albian Ajeti","FWD","West Ham"]
[null,"Javier Hernandez","FWD","West Ham"]
[null,"Anthony Pilkington","FWD","Wigan"]
[null,"Bright Enobakhare","FWD","Wigan"]
[null,"Gary Roberts","FWD","Wigan"]
[null,"Josh Windass","FWD","Wigan"]
[]
[]
[]
[]
[]
[]
[]
[]
[]
[]
[]
[]
[]
[]
[]
[]
[]
[]
[]
[]
[]
[]
[]
[]
[]
[]
[]
[]
[]
[]
[]
[]
[]
[]
[]
[]
[]
[]
[]
[]
[]
[]
[]
[]
[]
[]
[]
[]
[]
[]
[]
[]
[]
[]
[]
[]
[]
[]
[]
[]
[]
[]
[]
[]
[]
[]
[]
[]
[]
[]
[]
[]
[]
[]
[]
[]
[]
[]
[]
[]
[]
[]
[]
[]
[]
[]
[]
[]
[]
[]
[]
[]
[]
[]
[]
[]
[]
[]
[]
[]
[]
[]
[]
[]
[]
[{"$f":"IF(B207=\"\",\"\",A206+1)","v":""}]
[{"$f":"IF(B208=\"\",\"\",A207+1)","v":""}]
[{"$f":"IF(B209=\"\",\"\",A208+1)","v":""}]
[{"$f":"IF(B210=\"\",\"\",A209+1)","v":""}]
[{"$f":"IF(B211=\"\",\"\",A210+1)","v":""}]
[{"$f":"IF(B212=\"\",\"\",A211+1)","v":""}]
[{"$f":"IF(B213=\"\",\"\",A212+1)","v":""}]
[{"$f":"IF(B214=\"\",\"\",A213+1)","v":""}]
[{"$f":"IF(B215=\"\",\"\",A214+1)","v":""}]
[{"$f":"IF(B216=\"\",\"\",A215+1)","v":""}]
[{"$f":"IF(B217=\"\",\"\",A216+1)","v":""}]
[{"$f":"IF(B218=\"\",\"\",A217+1)","v":""}]
[{"$f":"IF(B219=\"\",\"\",A218+1)","v":""}]
[{"$f":"IF(B220=\"\",\"\",A219+1)","v":""}]
[{"$f":"IF(B221=\"\",\"\",A220+1)","v":""}]
[{"$f":"IF(B222=\"\",\"\",A221+1)","v":""}]
[{"$f":"IF(B223=\"\",\"\",A222+1)","v":""}]
[{"$f":"IF(B224=\"\",\"\",A223+1)","v":""}]
[{"$f":"IF(B225=\"\",\"\",A224+1)","v":""}]
[{"$f":"IF(B226=\"\",\"\",A225+1)","v":""}]
[{"$f":"IF(B227=\"\",\"\",A226+1)","v":""}]
[{"$f":"IF(B228=\"\",\"\",A227+1)","v":""}]
[{"$f":"IF(B229=\"\",\"\",A228+1)","v":""}]
[{"$f":"IF(B230=\"\",\"\",A229+1)","v":""}]
[{"$f":"IF(B231=\"\",\"\",A230+1)","v":""}]
[{"$f":"IF(B232=\"\",\"\",A231+1)","v":""}]
[{"$f":"IF(B233=\"\",\"\",A232+1)","v":""}]
[{"$f":"IF(B234=\"\",\"\",A233+1)","v":""}]
[{"$f":"IF(B235=\"\",\"\",A234+1)","v":""}]
[{"$f":"IF(B236=\"\",\"\",A235+1)","v":""}]
[{"$f":"IF(B237=\"\",\"\",A236+1)","v":""}]
[{"$f":"IF(B238=\"\",\"\",A237+1)","v":""}]
[{"$f":"IF(B239=\"\",\"\",A238+1)","v":""}]
[{"$f":"IF(B240=\"\",\"\",A239+1)","v":""}]
[{"$f":"IF(B241=\"\",\"\",A240+1)","v":""}]
[{"$f":"IF(B242=\"\",\"\",A241+1)","v":""}]
[{"$f":"IF(B243=\"\",\"\",A242+1)","v":""}]
[{"$f":"IF(B244=\"\",\"\",A243+1)","v":""}]
[{"$f":"IF(B245=\"\",\"\",A244+1)","v":""}]
[{"$f":"IF(B246=\"\",\"\",A245+1)","v":""}]
[{"$f":"IF(B247=\"\",\"\",A246+1)","v":""}]
[{"$f":"IF(B248=\"\",\"\",A247+1)","v":""}]
[{"$f":"IF(B249=\"\",\"\",A248+1)","v":""}]
[{"$f":"IF(B250=\"\",\"\",A249+1)","v":""}]